[Event "Titled Tuesday Blitz October 25 Late 2022"]
[White "Timmermans, Mark"]
[Black "Sorokin, Aleksey"]
[WhiteFideId "1026399"]
[BlackFideId "24176460"]
[WhiteElo "2460"]
[BlackElo "2476"]
[Result "1/2-1/2"]
[Round "10"]
[TimeControl "180+1"]
[Date "2022.10.26"]
[WhiteClock "0:00:30"]
[BlackClock "0:00:59"]

1. b4 {[%clk 0:03:00]}  a5 {[%clk 0:02:57]} 2. b5 {[%clk 0:03:00]}  a4 {[%clk 0:02:56]} 3. a3 {[%clk 0:02:58]}  c6 {[%clk 0:02:55]} 4. c4 {[%clk 0:02:58]}  d5 {[%clk 0:02:55]} 5. e3 {[%clk 0:02:57]}  dxc4 {[%clk 0:02:52]} 6. Bxc4 {[%clk 0:02:58]}  cxb5 {[%clk 0:02:52]} 7. Bxb5+ {[%clk 0:02:59]}  Bd7 {[%clk 0:02:52]} 8. Be2 {[%clk 0:02:58]}  Na6 {[%clk 0:02:51]} 9. d4 {[%clk 0:02:55]}  e5 {[%clk 0:02:49]} 10. Nf3 {[%clk 0:02:54]}  e4 {[%clk 0:02:47]} 11. Nfd2 {[%clk 0:02:54]}  Nf6 {[%clk 0:02:47]} 12. O-O {[%clk 0:02:52]}  Bd6 {[%clk 0:02:47]} 13. Nc4 {[%clk 0:02:43]}  Bc7 {[%clk 0:02:39]} 14. Ne5 {[%clk 0:02:38]}  O-O {[%clk 0:02:34]} 15. Nc3 {[%clk 0:02:37]}  Be8 {[%clk 0:02:27]} 16. Nxa4 {[%clk 0:02:29]}  Nd7 {[%clk 0:02:19]} 17. Nxd7 {[%clk 0:02:21]}  Bxd7 {[%clk 0:02:19]} 18. Nc3 {[%clk 0:02:21]}  Bxh2+ {[%clk 0:02:18]} 19. Kxh2 {[%clk 0:02:21]}  Qc7+ {[%clk 0:02:17]} 20. Kg1 {[%clk 0:02:21]}  Qxc3 {[%clk 0:02:18]} 21. Bd2 {[%clk 0:02:20]}  Qc7 {[%clk 0:02:15]} 22. Qb1 {[%clk 0:02:04]}  Rfe8 {[%clk 0:02:11]} 23. Rc1 {[%clk 0:02:03]}  Qb8 {[%clk 0:02:08]} 24. Bb5 {[%clk 0:01:45]}  Bxb5 {[%clk 0:02:05]} 25. Qxb5 {[%clk 0:01:46]}  Nc7 {[%clk 0:02:05]} 26. Qc4 {[%clk 0:01:41]}  Ne6 {[%clk 0:02:00]} 27. Qd5 {[%clk 0:01:34]}  Nf8 {[%clk 0:01:47]} 28. Rab1 {[%clk 0:01:28]}  b6 {[%clk 0:01:45]} 29. Rc6 {[%clk 0:01:23]}  Rxa3 {[%clk 0:01:42]} 30. Rcxb6 {[%clk 0:01:19]}  Qd8 {[%clk 0:01:41]} 31. Qxd8 {[%clk 0:01:15]}  Rxd8 {[%clk 0:01:42]} 32. Rb8 {[%clk 0:01:15]}  Ra8 {[%clk 0:01:42]} 33. Rxd8 {[%clk 0:01:08]}  Rxd8 {[%clk 0:01:43]} 34. g4 {[%clk 0:01:09]}  h6 {[%clk 0:01:38]} 35. Rb5 {[%clk 0:01:03]}  Nh7 {[%clk 0:01:38]} 36. Bb4 {[%clk 0:01:00]}  Ng5 {[%clk 0:01:35]} 37. Kg2 {[%clk 0:00:54]}  f6 {[%clk 0:01:32]} 38. Rb6 {[%clk 0:00:47]}  Rd7 {[%clk 0:01:31]} 39. Bd6 {[%clk 0:00:45]}  Kf7 {[%clk 0:01:30]} 40. Bf4 {[%clk 0:00:42]}  Nf3 {[%clk 0:01:30]} 41. Rc6 {[%clk 0:00:39]}  Ra7 {[%clk 0:01:26]} 42. Rc7+ {[%clk 0:00:38]}  Rxc7 {[%clk 0:01:25]} 43. Bxc7 {[%clk 0:00:39]}  Ke6 {[%clk 0:01:25]} 44. Ba5 {[%clk 0:00:38]}  g6 {[%clk 0:01:18]} 45. Bb4 {[%clk 0:00:38]}  h5 {[%clk 0:01:16]} 46. gxh5 {[%clk 0:00:37]}  gxh5 {[%clk 0:01:16]} 47. Bf8 {[%clk 0:00:36]}  h4 {[%clk 0:01:12]} 48. Kh3 {[%clk 0:00:32]}  Kf5 {[%clk 0:01:12]} 49. Bg7 {[%clk 0:00:32]}  Kg6 {[%clk 0:01:10]} 50. Bh8 {[%clk 0:00:32]}  Kf5 {[%clk 0:01:10]} 51. d5 {[%clk 0:00:31]}  Ke5 {[%clk 0:01:06]} 52. d6 {[%clk 0:00:31]}  Ke6 {[%clk 0:01:06]} 53. d7 {[%clk 0:00:30]}  Kxd7 {[%clk 0:01:06]} 54. Bxf6 {[%clk 0:00:31]}  Ke6 {[%clk 0:01:04]} 55. Bxh4 {[%clk 0:00:31]}  Kd5 {[%clk 0:01:04]} 56. Bg3 {[%clk 0:00:31]}  Kc4 {[%clk 0:01:04]} 57. Kg4 {[%clk 0:00:32]}  Kd3 {[%clk 0:01:04]} 58. Kf4 {[%clk 0:00:32]}  Nd2 {[%clk 0:01:02]} 59. Bh4 {[%clk 0:00:31]}  Nb3 {[%clk 0:01:01]} 60. f3 {[%clk 0:00:31]}  Nd2 {[%clk 0:00:58]} 61. fxe4 {[%clk 0:00:30]}  Nxe4 {[%clk 0:00:59]} 1/2-1/2


[Site "https://www.chess.com"]

[Event "Titled Tuesday Blitz October 25 Late 2022"]
[White "Vargas, Mauricio"]
[Black "Silva Rosas, Natalia"]
[WhiteFideId "4404572"]
[BlackFideId "3000575"]
[WhiteElo "2025"]
[BlackElo "1752"]
[Result "0-1"]
[Round "10"]
[TimeControl "180+1"]
[Date "2022.10.26"]
[WhiteClock "0:00:25"]
[BlackClock "0:00:05"]

1. e4 {[%clk 0:02:59]}  c5 {[%clk 0:02:59]} 2. Nc3 {[%clk 0:02:59]}  Nc6 {[%clk 0:02:53]} 3. f4 {[%clk 0:03:00]}  e6 {[%clk 0:02:48]} 4. Nf3 {[%clk 0:03:01]}  d5 {[%clk 0:02:44]} 5. Bb5 {[%clk 0:03:00]}  Ne7 {[%clk 0:02:36]} 6. e5 {[%clk 0:02:57]}  a6 {[%clk 0:02:28]} 7. Bxc6+ {[%clk 0:02:50]}  Nxc6 {[%clk 0:02:24]} 8. O-O {[%clk 0:02:51]}  c4 {[%clk 0:02:20]} 9. d4 {[%clk 0:02:46]}  cxd3 {[%clk 0:02:19]} 10. cxd3 {[%clk 0:02:47]}  Bc5+ {[%clk 0:02:15]} 11. d4 {[%clk 0:02:47]}  Ba7 {[%clk 0:02:14]} 12. Be3 {[%clk 0:02:41]}  f5 {[%clk 0:02:05]} 13. exf6 {[%clk 0:02:31]}  Qxf6 {[%clk 0:01:59]} 14. a3 {[%clk 0:02:30]}  O-O {[%clk 0:01:54]} 15. Qe1 {[%clk 0:02:15]}  Bd7 {[%clk 0:01:49]} 16. Qg3 {[%clk 0:02:03]}  Nxd4 {[%clk 0:01:33]} 17. Ne5 {[%clk 0:01:57]}  Nf5 {[%clk 0:01:10]} 18. Nxd7 {[%clk 0:01:46]}  Bxe3+ {[%clk 0:01:01]} 19. Qxe3 {[%clk 0:01:38]}  Nxe3 {[%clk 0:00:57]} 20. Nxf6+ {[%clk 0:01:38]}  Rxf6 {[%clk 0:00:56]} 21. Rf3 {[%clk 0:01:35]}  Nc2 {[%clk 0:00:53]} 22. Rd1 {[%clk 0:01:31]}  d4 {[%clk 0:00:50]} 23. Ne4 {[%clk 0:01:30]}  Rg6 {[%clk 0:00:43]} 24. Rd2 {[%clk 0:01:23]}  Ne3 {[%clk 0:00:33]} 25. Rxd4 {[%clk 0:01:18]}  Nxg2 {[%clk 0:00:25]} 26. Rdd3 {[%clk 0:01:07]}  Nxf4+ {[%clk 0:00:24]} 27. Kf2 {[%clk 0:01:02]}  Nxd3+ {[%clk 0:00:24]} 28. Rxd3 {[%clk 0:01:01]}  Rf8+ {[%clk 0:00:24]} 29. Ke3 {[%clk 0:01:00]}  e5 {[%clk 0:00:23]} 30. b4 {[%clk 0:00:58]}  b5 {[%clk 0:00:22]} 31. Rd7 {[%clk 0:00:55]}  Rh6 {[%clk 0:00:20]} 32. Rd2 {[%clk 0:00:46]}  Rh3+ {[%clk 0:00:20]} 33. Ke2 {[%clk 0:00:42]}  Rxh2+ {[%clk 0:00:19]} 34. Kd3 {[%clk 0:00:42]}  Rxd2+ {[%clk 0:00:19]} 35. Kxd2 {[%clk 0:00:42]}  Rf4 {[%clk 0:00:19]} 36. Kd3 {[%clk 0:00:40]}  h5 {[%clk 0:00:18]} 37. Ng5 {[%clk 0:00:38]}  g6 {[%clk 0:00:15]} 38. Ne6 {[%clk 0:00:38]}  Rf3+ {[%clk 0:00:14]} 39. Ke4 {[%clk 0:00:37]}  Rxa3 {[%clk 0:00:14]} 40. Kxe5 {[%clk 0:00:37]}  Ra4 {[%clk 0:00:14]} 41. Nc5 {[%clk 0:00:34]}  Rxb4 {[%clk 0:00:13]} 42. Nxa6 {[%clk 0:00:35]}  Rc4 {[%clk 0:00:12]} 43. Kf6 {[%clk 0:00:32]}  Kh7 {[%clk 0:00:12]} 44. Ke5 {[%clk 0:00:33]}  Kh6 {[%clk 0:00:12]} 45. Nb8 {[%clk 0:00:30]}  h4 {[%clk 0:00:12]} 46. Nd7 {[%clk 0:00:30]}  h3 {[%clk 0:00:11]} 47. Kf6 {[%clk 0:00:29]}  Rc6+ {[%clk 0:00:10]} 48. Ke5 {[%clk 0:00:26]}  h2 {[%clk 0:00:08]} 49. Kd5 {[%clk 0:00:25]}  Rc1 {[%clk 0:00:07]} 50. Ne5 {[%clk 0:00:23]}  h1=Q+ {[%clk 0:00:05]} 51. Kd6 {[%clk 0:00:23]}  Qh2 {[%clk 0:00:05]} 52. Ke6 {[%clk 0:00:22]}  Qxe5+ {[%clk 0:00:04]} 53. Kxe5 {[%clk 0:00:22]}  Kg5 {[%clk 0:00:04]} 54. Kd4 {[%clk 0:00:21]}  b4 {[%clk 0:00:04]} 55. Kd3 {[%clk 0:00:21]}  b3 {[%clk 0:00:05]} 56. Kd2 {[%clk 0:00:22]}  b2 {[%clk 0:00:05]} 57. Kd3 {[%clk 0:00:22]}  b1=Q+ {[%clk 0:00:05]} 58. Ke3 {[%clk 0:00:23]}  Qb3+ {[%clk 0:00:05]} 59. Ke4 {[%clk 0:00:23]}  Rc4+ {[%clk 0:00:05]} 60. Kd5 {[%clk 0:00:23]}  Qb5+ {[%clk 0:00:05]} 61. Ke6 {[%clk 0:00:24]}  Rc6+ {[%clk 0:00:05]} 62. Kf7 {[%clk 0:00:24]}  Qb7+ {[%clk 0:00:05]} 63. Kg8 {[%clk 0:00:25]}  Rc8# {[%clk 0:00:05]} 0-1


[Site "https://www.chess.com"]

[Event "Titled Tuesday Blitz October 25 Late 2022"]
[White "Yeletsky, Ivan"]
[Black "Kirillov, Dmitry"]
[WhiteFideId "24180327"]
[BlackFideId "34180572"]
[WhiteElo "2391"]
[BlackElo "2095"]
[Result "1-0"]
[Round "10"]
[TimeControl "180+1"]
[Date "2022.10.26"]
[WhiteClock "0:00:10"]
[BlackClock "0:00:02"]

1. c4 {[%clk 0:02:59]}  e6 {[%clk 0:02:59]} 2. g3 {[%clk 0:02:59]}  d5 {[%clk 0:03:00]} 3. Nf3 {[%clk 0:02:59]}  c6 {[%clk 0:02:59]} 4. Bg2 {[%clk 0:02:57]}  dxc4 {[%clk 0:02:59]} 5. O-O {[%clk 0:02:50]}  b5 {[%clk 0:02:59]} 6. Ne1 {[%clk 0:02:43]}  Bb7 {[%clk 0:02:58]} 7. a4 {[%clk 0:02:43]}  Qc8 {[%clk 0:02:44]} 8. d3 {[%clk 0:02:43]}  cxd3 {[%clk 0:02:43]} 9. Nxd3 {[%clk 0:02:44]}  Nf6 {[%clk 0:02:40]} 10. Nc3 {[%clk 0:02:38]}  b4 {[%clk 0:02:38]} 11. Ne4 {[%clk 0:02:37]}  Nxe4 {[%clk 0:02:37]} 12. Bxe4 {[%clk 0:02:38]}  a5 {[%clk 0:02:36]} 13. Bf4 {[%clk 0:02:26]}  Be7 {[%clk 0:02:35]} 14. Ne5 {[%clk 0:02:22]}  O-O {[%clk 0:02:29]} 15. Qc2 {[%clk 0:02:14]}  f5 {[%clk 0:02:26]} 16. Bg2 {[%clk 0:02:13]}  c5 {[%clk 0:02:24]} 17. Bxb7 {[%clk 0:01:51]}  Qxb7 {[%clk 0:02:25]} 18. Rad1 {[%clk 0:01:51]}  Bf6 {[%clk 0:02:20]} 19. Qxc5 {[%clk 0:01:41]}  Rc8 {[%clk 0:01:53]} 20. Qe3 {[%clk 0:01:17]}  Nc6 {[%clk 0:01:49]} 21. Rd7 {[%clk 0:01:12]}  Rc7 {[%clk 0:01:11]} 22. Rd6 {[%clk 0:00:35]}  Re8 {[%clk 0:01:00]} 23. Rfd1 {[%clk 0:00:29]}  g5 {[%clk 0:00:44]} 24. Nxc6 {[%clk 0:00:27]}  gxf4 {[%clk 0:00:43]} 25. Qf3 {[%clk 0:00:26]}  fxg3 {[%clk 0:00:40]} 26. hxg3 {[%clk 0:00:27]}  Be7 {[%clk 0:00:30]} 27. Rxe6 {[%clk 0:00:26]}  Rec8 {[%clk 0:00:16]} 28. Rc1 {[%clk 0:00:16]}  Rf8 {[%clk 0:00:08]} 29. Rc4 {[%clk 0:00:14]}  Rd7 {[%clk 0:00:07]} 30. Kg2 {[%clk 0:00:12]}  Bf6 {[%clk 0:00:04]} 31. b3 {[%clk 0:00:13]}  Bg7 {[%clk 0:00:05]} 32. Nxa5 {[%clk 0:00:13]}  Qxf3+ {[%clk 0:00:04]} 33. exf3 {[%clk 0:00:13]}  Rd2 {[%clk 0:00:05]} 34. Nc6 {[%clk 0:00:11]}  Rf6 {[%clk 0:00:02]} 35. Rxf6 {[%clk 0:00:11]}  Bxf6 {[%clk 0:00:03]} 36. Rxb4 {[%clk 0:00:11]}  Rb2 {[%clk 0:00:04]} 37. a5 {[%clk 0:00:10]}  Kg7 {[%clk 0:00:04]} 38. a6 {[%clk 0:00:11]}  Ra2 {[%clk 0:00:03]} 39. a7 {[%clk 0:00:11]}  Bd4 {[%clk 0:00:02]} 40. Rxd4 {[%clk 0:00:10]} 1-0


[Site "https://www.chess.com"]

[Event "Titled Tuesday Blitz October 25 Late 2022"]
[White "Yuan, Qingyu"]
[Black "Sargsyan, Anna M."]
[WhiteFideId "8609772"]
[BlackFideId "13308130"]
[WhiteElo "2359"]
[BlackElo "2284"]
[Result "1/2-1/2"]
[Round "10"]
[TimeControl "180+1"]
[Date "2022.10.26"]
[WhiteClock "0:00:04"]
[BlackClock "0:00:06"]

1. d4 {[%clk 0:03:00]}  d5 {[%clk 0:02:56]} 2. Bf4 {[%clk 0:03:00]}  Nf6 {[%clk 0:02:56]} 3. e3 {[%clk 0:02:59]}  c6 {[%clk 0:02:51]} 4. c4 {[%clk 0:02:56]}  g6 {[%clk 0:02:37]} 5. Nc3 {[%clk 0:02:54]}  Bg7 {[%clk 0:02:37]} 6. Nf3 {[%clk 0:02:52]}  O-O {[%clk 0:02:38]} 7. h3 {[%clk 0:02:47]}  Be6 {[%clk 0:02:32]} 8. c5 {[%clk 0:02:36]}  b6 {[%clk 0:02:27]} 9. b4 {[%clk 0:02:35]}  a5 {[%clk 0:02:27]} 10. a3 {[%clk 0:02:35]}  axb4 {[%clk 0:02:27]} 11. axb4 {[%clk 0:02:35]}  Rxa1 {[%clk 0:02:27]} 12. Qxa1 {[%clk 0:02:36]}  bxc5 {[%clk 0:02:28]} 13. bxc5 {[%clk 0:02:35]}  Nbd7 {[%clk 0:02:23]} 14. Bd3 {[%clk 0:02:24]}  h6 {[%clk 0:02:22]} 15. O-O {[%clk 0:02:23]}  Qa8 {[%clk 0:02:18]} 16. Rb1 {[%clk 0:02:14]}  Nh5 {[%clk 0:02:14]} 17. Bh2 {[%clk 0:02:13]}  Qxa1 {[%clk 0:02:14]} 18. Rxa1 {[%clk 0:02:11]}  Nxc5 {[%clk 0:02:14]} 19. Bc2 {[%clk 0:01:29]}  Nd7 {[%clk 0:02:12]} 20. Ba4 {[%clk 0:01:10]}  Rc8 {[%clk 0:02:07]} 21. Rc1 {[%clk 0:01:04]}  Nb6 {[%clk 0:02:05]} 22. Bb3 {[%clk 0:00:58]}  c5 {[%clk 0:01:58]} 23. dxc5 {[%clk 0:00:52]}  Rxc5 {[%clk 0:01:57]} 24. Ne2 {[%clk 0:00:52]}  Rxc1+ {[%clk 0:01:56]} 25. Nxc1 {[%clk 0:00:53]}  Nf6 {[%clk 0:01:49]} 26. Nd4 {[%clk 0:00:47]}  Bd7 {[%clk 0:01:47]} 27. Nd3 {[%clk 0:00:44]}  Ne4 {[%clk 0:01:40]} 28. Bc7 {[%clk 0:00:44]}  Nc4 {[%clk 0:01:39]} 29. Nb4 {[%clk 0:00:29]}  e6 {[%clk 0:01:33]} 30. Nbc6 {[%clk 0:00:28]}  g5 {[%clk 0:00:52]} 31. Bc2 {[%clk 0:00:25]}  Nc5 {[%clk 0:00:38]} 32. Kf1 {[%clk 0:00:24]}  f5 {[%clk 0:00:32]} 33. Ke2 {[%clk 0:00:21]}  Kf7 {[%clk 0:00:32]} 34. f4 {[%clk 0:00:17]}  gxf4 {[%clk 0:00:30]} 35. exf4 {[%clk 0:00:18]}  Ne4 {[%clk 0:00:18]} 36. g4 {[%clk 0:00:15]}  fxg4 {[%clk 0:00:10]} 37. hxg4 {[%clk 0:00:16]}  Ned6 {[%clk 0:00:09]} 38. Nd8+ {[%clk 0:00:13]}  Ke7 {[%clk 0:00:07]} 39. N8c6+ {[%clk 0:00:13]}  Ke8 {[%clk 0:00:04]} 40. Bg6+ {[%clk 0:00:13]}  Kf8 {[%clk 0:00:03]} 41. Bd8 {[%clk 0:00:12]}  Bxc6 {[%clk 0:00:01]} 42. Nxc6 {[%clk 0:00:10]}  Kg8 {[%clk 0:00:02]} 43. Kf3 {[%clk 0:00:08]}  Nb5 {[%clk 0:00:01]} 44. f5 {[%clk 0:00:05]}  exf5 {[%clk 0:00:01]} 45. gxf5 {[%clk 0:00:06]}  Ne5+ {[%clk 0:00:01]} 46. Nxe5 {[%clk 0:00:05]}  Bxe5 {[%clk 0:00:02]} 47. f6 {[%clk 0:00:05]}  Nd6 {[%clk 0:00:03]} 48. Bc7 {[%clk 0:00:04]}  Kf8 {[%clk 0:00:03]} 49. Kg4 {[%clk 0:00:04]}  Nf7 {[%clk 0:00:03]} 50. Bb6 {[%clk 0:00:03]}  Bxf6 {[%clk 0:00:02]} 51. Kf5 {[%clk 0:00:03]}  Kg7 {[%clk 0:00:02]} 52. Bh5 {[%clk 0:00:02]}  Nd6+ {[%clk 0:00:02]} 53. Ke6 {[%clk 0:00:02]}  Ne4 {[%clk 0:00:02]} 54. Kxd5 {[%clk 0:00:03]}  Ng5 {[%clk 0:00:03]} 55. Bg4 {[%clk 0:00:03]}  Nf7 {[%clk 0:00:03]} 56. Bf5 {[%clk 0:00:04]}  Ne5 {[%clk 0:00:04]} 57. Ke6 {[%clk 0:00:04]}  Ng6 {[%clk 0:00:04]} 58. Be4 {[%clk 0:00:04]}  Nf4+ {[%clk 0:00:04]} 59. Kf5 {[%clk 0:00:05]}  Nh5 {[%clk 0:00:05]} 60. Bf3 {[%clk 0:00:05]}  Ng3+ {[%clk 0:00:04]} 61. Kg4 {[%clk 0:00:05]}  Be5 {[%clk 0:00:04]} 62. Bf2 {[%clk 0:00:05]}  Kf6 {[%clk 0:00:04]} 63. Be3 {[%clk 0:00:03]}  h5+ {[%clk 0:00:04]} 64. Kh3 {[%clk 0:00:04]}  Nf5 {[%clk 0:00:05]} 65. Bf2 {[%clk 0:00:04]}  h4 {[%clk 0:00:05]} 66. Bg4 {[%clk 0:00:04]}  Ng3 {[%clk 0:00:05]} 67. Kxh4 {[%clk 0:00:04]}  Ne4 {[%clk 0:00:06]} 68. Be3 {[%clk 0:00:04]}  Ke7 {[%clk 0:00:06]} 69. Bf5 {[%clk 0:00:04]}  Nd6 {[%clk 0:00:05]} 70. Bd3 {[%clk 0:00:04]}  Bf6+ {[%clk 0:00:05]} 71. Kg4 {[%clk 0:00:04]}  Ke6 {[%clk 0:00:05]} 72. Bc5 {[%clk 0:00:04]}  Kd5 {[%clk 0:00:06]} 73. Ba3 {[%clk 0:00:05]}  Be5 {[%clk 0:00:06]} 74. Kf3 {[%clk 0:00:05]}  Nc4 {[%clk 0:00:06]} 75. Be4+ {[%clk 0:00:05]}  Kd4 {[%clk 0:00:06]} 76. Bb4 {[%clk 0:00:05]}  Bd6 {[%clk 0:00:05]} 77. Be1 {[%clk 0:00:05]}  Ne5+ {[%clk 0:00:06]} 78. Ke2 {[%clk 0:00:04]}  Kxe4 {[%clk 0:00:06]} 79. Bg3 {[%clk 0:00:04]}  Bc5 {[%clk 0:00:06]} 80. Bxe5 {[%clk 0:00:04]} 1/2-1/2


[Site "https://www.chess.com"]

[Event "Titled Tuesday Blitz October 25 Late 2022"]
[White "Yurovskykh, Oleksandr"]
[Black "Amburgy, Ryan"]
[WhiteFideId "14134020"]
[BlackFideId "30924820"]
[WhiteElo "2303"]
[BlackElo "2121"]
[Result "0-1"]
[Round "10"]
[TimeControl "180+1"]
[Date "2022.10.26"]
[WhiteClock "0:00:01"]
[BlackClock "0:00:22"]

1. d4 {[%clk 0:03:00]}  Nf6 {[%clk 0:03:00]} 2. Nf3 {[%clk 0:03:01]}  b6 {[%clk 0:02:59]} 3. Bg5 {[%clk 0:03:01]}  e6 {[%clk 0:02:58]} 4. e3 {[%clk 0:03:00]}  Bb7 {[%clk 0:02:58]} 5. Bd3 {[%clk 0:03:01]}  Be7 {[%clk 0:02:58]} 6. Nbd2 {[%clk 0:03:01]}  d5 {[%clk 0:02:55]} 7. c3 {[%clk 0:02:56]}  O-O {[%clk 0:02:52]} 8. Qc2 {[%clk 0:02:55]}  Nbd7 {[%clk 0:02:50]} 9. e4 {[%clk 0:02:54]}  dxe4 {[%clk 0:02:46]} 10. Nxe4 {[%clk 0:02:54]}  h6 {[%clk 0:02:47]} 11. Bxf6 {[%clk 0:02:45]}  Bxf6 {[%clk 0:02:42]} 12. O-O {[%clk 0:02:37]}  Re8 {[%clk 0:02:31]} 13. Rad1 {[%clk 0:02:36]}  Be7 {[%clk 0:02:20]} 14. Rfe1 {[%clk 0:02:34]}  Nf6 {[%clk 0:02:05]} 15. Nxf6+ {[%clk 0:02:34]}  Bxf6 {[%clk 0:02:06]} 16. Be4 {[%clk 0:02:34]}  Bd5 {[%clk 0:02:06]} 17. Bxd5 {[%clk 0:02:30]}  Qxd5 {[%clk 0:02:07]} 18. Qb3 {[%clk 0:02:28]}  Rad8 {[%clk 0:02:00]} 19. Qxd5 {[%clk 0:02:20]}  Rxd5 {[%clk 0:02:01]} 20. Kf1 {[%clk 0:02:16]}  Red8 {[%clk 0:02:00]} 21. Ke2 {[%clk 0:02:16]}  Kf8 {[%clk 0:01:56]} 22. Rd2 {[%clk 0:02:12]}  a5 {[%clk 0:01:55]} 23. a4 {[%clk 0:02:11]}  g6 {[%clk 0:01:53]} 24. Red1 {[%clk 0:02:10]}  c6 {[%clk 0:01:49]} 25. Rd3 {[%clk 0:02:10]}  R5d7 {[%clk 0:01:42]} 26. Nd2 {[%clk 0:02:07]}  Be7 {[%clk 0:01:26]} 27. Nc4 {[%clk 0:01:57]}  Rb7 {[%clk 0:01:26]} 28. Ra1 {[%clk 0:01:54]}  Rd5 {[%clk 0:01:25]} 29. g3 {[%clk 0:01:47]}  c5 {[%clk 0:01:17]} 30. dxc5 {[%clk 0:01:45]}  Rxc5 {[%clk 0:01:17]} 31. Na3 {[%clk 0:01:35]}  h5 {[%clk 0:01:05]} 32. Nb5 {[%clk 0:01:34]}  h4 {[%clk 0:01:03]} 33. g4 {[%clk 0:01:28]}  Rb8 {[%clk 0:00:58]} 34. h3 {[%clk 0:01:28]}  Rd8 {[%clk 0:00:52]} 35. Rxd8+ {[%clk 0:01:27]}  Bxd8 {[%clk 0:00:53]} 36. Rd1 {[%clk 0:01:26]}  Be7 {[%clk 0:00:53]} 37. b3 {[%clk 0:01:26]}  Bf6 {[%clk 0:00:52]} 38. c4 {[%clk 0:01:26]}  Be7 {[%clk 0:00:52]} 39. Rd7 {[%clk 0:01:26]}  Re5+ {[%clk 0:00:52]} 40. Kf1 {[%clk 0:01:19]}  Bb4 {[%clk 0:00:50]} 41. Rd1 {[%clk 0:00:50]}  f5 {[%clk 0:00:45]} 42. gxf5 {[%clk 0:00:46]}  exf5 {[%clk 0:00:45]} 43. Nd4 {[%clk 0:00:44]}  Bc5 {[%clk 0:00:44]} 44. Nf3 {[%clk 0:00:45]}  Re4 {[%clk 0:00:44]} 45. Re1 {[%clk 0:00:42]}  Rxe1+ {[%clk 0:00:41]} 46. Kxe1 {[%clk 0:00:43]}  Be7 {[%clk 0:00:40]} 47. Ne5 {[%clk 0:00:41]}  Kg7 {[%clk 0:00:41]} 48. Ke2 {[%clk 0:00:38]}  g5 {[%clk 0:00:40]} 49. f3 {[%clk 0:00:38]}  Bd6 {[%clk 0:00:37]} 50. Nd3 {[%clk 0:00:38]}  Kf6 {[%clk 0:00:36]} 51. Ke3 {[%clk 0:00:30]}  Bc5+ {[%clk 0:00:34]} 52. Ke2 {[%clk 0:00:27]}  Ke6 {[%clk 0:00:26]} 53. Ne1 {[%clk 0:00:14]}  Ke5 {[%clk 0:00:22]} 54. Ng2 {[%clk 0:00:13]}  Be7 {[%clk 0:00:20]} 55. Kd3 {[%clk 0:00:13]}  g4 {[%clk 0:00:18]} 56. fxg4 {[%clk 0:00:12]}  fxg4 {[%clk 0:00:19]} 57. hxg4 {[%clk 0:00:10]}  h3 {[%clk 0:00:20]} 58. Ne1 {[%clk 0:00:10]}  Kf4 {[%clk 0:00:20]} 59. Ke2 {[%clk 0:00:08]}  h2 {[%clk 0:00:21]} 60. Nd3+ {[%clk 0:00:08]}  Kg3 {[%clk 0:00:20]} 61. Nf2 {[%clk 0:00:09]}  Bc5 {[%clk 0:00:21]} 62. Nh1+ {[%clk 0:00:08]}  Kg2 {[%clk 0:00:22]} 63. g5 {[%clk 0:00:09]}  Kxh1 {[%clk 0:00:20]} 64. Kf1 {[%clk 0:00:09]}  Bd4 {[%clk 0:00:20]} 65. g6 {[%clk 0:00:08]}  Bg7 {[%clk 0:00:20]} 66. Kf2 {[%clk 0:00:07]}  Bf6 {[%clk 0:00:21]} 67. Kf1 {[%clk 0:00:08]}  Bd4 {[%clk 0:00:22]} 68. Ke2 {[%clk 0:00:01]}  Kg2 {[%clk 0:00:22]} 0-1


[Site "https://www.chess.com"]

[Event "Titled Tuesday Blitz October 25 Late 2022"]
[White "Aghasiyev, Kamal"]
[Black "Yuan, Qingyu"]
[WhiteFideId "13402854"]
[BlackFideId "8609772"]
[WhiteElo "2341"]
[BlackElo "2359"]
[Result "0-1"]
[Round "11"]
[TimeControl "180+1"]
[Date "2022.10.26"]
[WhiteClock "0:00:01"]
[BlackClock "0:00:40"]

1. d4 {[%clk 0:03:00]}  d5 {[%clk 0:03:00]} 2. c4 {[%clk 0:02:58]}  e6 {[%clk 0:03:00]} 3. Nc3 {[%clk 0:02:58]}  Nf6 {[%clk 0:03:01]} 4. cxd5 {[%clk 0:02:58]}  exd5 {[%clk 0:03:02]} 5. Bg5 {[%clk 0:02:58]}  c6 {[%clk 0:03:02]} 6. e3 {[%clk 0:02:57]}  h6 {[%clk 0:03:03]} 7. Bh4 {[%clk 0:02:57]}  Be7 {[%clk 0:03:04]} 8. Bd3 {[%clk 0:02:57]}  O-O {[%clk 0:03:04]} 9. Qc2 {[%clk 0:02:56]}  Re8 {[%clk 0:03:04]} 10. Nge2 {[%clk 0:02:55]}  Nbd7 {[%clk 0:03:04]} 11. O-O {[%clk 0:02:47]}  a5 {[%clk 0:03:04]} 12. f3 {[%clk 0:02:37]}  b5 {[%clk 0:03:03]} 13. e4 {[%clk 0:02:29]}  b4 {[%clk 0:02:59]} 14. Na4 {[%clk 0:02:20]}  dxe4 {[%clk 0:02:53]} 15. fxe4 {[%clk 0:02:20]}  c5 {[%clk 0:02:33]} 16. e5 {[%clk 0:02:14]}  Nd5 {[%clk 0:02:25]} 17. Bh7+ {[%clk 0:02:08]}  Kh8 {[%clk 0:02:25]} 18. Rxf7 {[%clk 0:01:10]}  Bxh4 {[%clk 0:02:12]} 19. Raf1 {[%clk 0:01:02]}  Nf8 {[%clk 0:01:37]} 20. Be4 {[%clk 0:00:54]}  Be6 {[%clk 0:01:35]} 21. Nxc5 {[%clk 0:00:40]}  Bxf7 {[%clk 0:01:28]} 22. Rxf7 {[%clk 0:00:40]}  Rc8 {[%clk 0:01:27]} 23. Qd3 {[%clk 0:00:35]}  Rc7 {[%clk 0:01:20]} 24. Bxd5 {[%clk 0:00:31]}  Rxf7 {[%clk 0:01:09]} 25. Bxf7 {[%clk 0:00:31]}  Re7 {[%clk 0:01:10]} 26. Bb3 {[%clk 0:00:26]}  Rc7 {[%clk 0:01:10]} 27. Qe4 {[%clk 0:00:22]}  Be7 {[%clk 0:01:05]} 28. Nd3 {[%clk 0:00:14]}  Qe8 {[%clk 0:00:57]} 29. g3 {[%clk 0:00:07]}  a4 {[%clk 0:00:57]} 30. Bd5 {[%clk 0:00:07]}  Qb5 {[%clk 0:00:56]} 31. Nef4 {[%clk 0:00:07]}  a3 {[%clk 0:00:53]} 32. b3 {[%clk 0:00:06]}  Rc2 {[%clk 0:00:53]} 33. Bc4 {[%clk 0:00:06]}  Qe8 {[%clk 0:00:50]} 34. Qd5 {[%clk 0:00:05]}  Nh7 {[%clk 0:00:47]} 35. Qe6 {[%clk 0:00:05]}  Ng5 {[%clk 0:00:43]} 36. Qf5 {[%clk 0:00:04]}  Nf3+ {[%clk 0:00:41]} 37. Kf1 {[%clk 0:00:05]}  Nd2+ {[%clk 0:00:40]} 38. Ke1 {[%clk 0:00:04]}  Nxc4 {[%clk 0:00:41]} 39. bxc4 {[%clk 0:00:04]}  Rxa2 {[%clk 0:00:40]} 40. Ng6+ {[%clk 0:00:04]}  Kg8 {[%clk 0:00:41]} 41. Qe6+ {[%clk 0:00:04]}  Kh7 {[%clk 0:00:41]} 42. Nxe7 {[%clk 0:00:03]}  Rxh2 {[%clk 0:00:40]} 43. Nf4 {[%clk 0:00:01]}  a2 {[%clk 0:00:40]} 0-1


[Site "https://www.chess.com"]